bitfinex/quotes_ETHUSD_20241215
["timestamp","ask_amount","ask_price","bid_price","bid_amount"]
[1734235098600,0.43301652,3876.3,3876.0,2.52991606]
[1734235098805,0.7528,3876.5,3876.0,0.29486751]
[1734235099021,0.43299765,3876.4,3876.1,0.89401461]
[1734235099188,0.43299765,3876.3,3876.0,0.29486751]
[1734235099387,0.7528,3876.5,3876.0,0.29486751]
[1734235099588,0.43289888,3876.4,3876.0,0.29486751]
[1734235099797,0.43289888,3876.3,3876.0,0.29486751]
[1734235099998,0.7528,3876.5,3876.0,0.29486751]
[1734235100198,0.43286833,3876.4,3876.0,0.29486751]
[1734235100437,0.43283784,3876.3,3876.0,0.29486751]
[1734235100643,0.7528,3876.5,3876.0,0.29486751]
[1734235100798,0.43283242,3876.4,3876.0,0.29486751]
[1734235101152,0.7528,3876.5,3876.0,0.29486751]
[1734235101153,0.24046246,3876.3,3876.0,0.29486751]
[1734235101311,0.7528,3876.5,3876.0,0.29486751]
[1734235101507,0.43278648,3876.4,3876.0,0.29486751]
[1734235101717,0.2404376,3876.3,3876.0,0.29486751]
[1734235101892,0.7528,3876.5,3876.0,0.29486751]
[1734235102097,0.4327662,3876.4,3876.0,0.29486751]
[1734235102345,0.52364014,3876.2,3876.0,0.29486751]
[1734235103501,0.7528,3876.5,3876.0,0.29486751]
[1734235103849,0.43264779,3876.4,3876.0,0.29486751]
[1734235104046,0.24035998,3876.3,3876.0,0.29486751]
[1734235104250,0.7528,3876.5,3876.0,0.29486751]
[1734235104555,0.4325418,3876.4,3876.0,0.29486751]
[1734235104719,0.7528,3876.5,3876.0,0.29486751]
[1734235104920,0.43248096,3876.4,3876.0,0.29486751]
[1734235105119,0.7528,3876.5,3876.0,0.29486751]
[1734235105319,0.4324507,3876.4,3876.0,0.29486751]
[1734235105518,0.7528,3876.5,3876.0,0.29486751]
[1734235105747,0.43245824,3876.4,3876.0,0.29486751]
[1734235106088,0.24025455,3876.3,3876.0,0.29486751]
[1734235106340,0.7528,3876.5,3876.0,0.29486751]
[1734235106542,0.43244865,3876.4,3876.0,0.29486751]
[1734235106701,0.24024897,3876.3,3876.0,0.29486751]
[1734235106899,0.51476751,3876.3,3876.0,0.29486751]
[1734235108907,0.51476751,3876.3,3876.1,0.06298744]
[1734235113450,0.24035527,3876.2,3876.1,0.06298744]
[1734235115817,0.43271542,3876.2,3875.5,1.88389445]
[1734235116027,0.43271309,3876.1,3875.6,1.57734185]
[1734235116224,0.24035527,3876.0,3875.6,0.68458986]
[1734235116567,3.09454751,3876.3,3875.6,0.68458986]
[1734235116714,0.19238517,3876.2,3875.6,0.68458986]
[1734235116919,0.43286652,3876.1,3875.7,0.58180843]
[1734235117165,0.24048135,3876.0,3875.7,0.58180843]
[1734235117467,3.09454751,3876.3,3875.8,0.06304251]
[1734235117763,0.4329588,3876.2,3875.8,0.06304251]
[1734235117931,0.4329588,3876.1,3875.7,1.06409445]
[1734235118131,0.24053267,3876.0,3875.9,0.06304005]
[1734235118318,0.24053267,3876.0,3875.8,0.06304497]
[1734235118517,3.09454751,3876.3,3875.9,0.06304205]
[1734235118757,0.43305196,3876.2,3875.9,0.06304205]
[1734235118912,0.43305196,3876.1,3875.7,1.06409445]
[1734235119251,0.4330891,3876.0,3875.7,1.5774439]
[1734235119413,3.09454751,3876.3,3875.7,1.5774439]
[1734235119616,0.43313636,3876.2,3875.7,1.5774439]
[1734235119813,0.24063131,3876.1,3875.7,1.5774439]
[1734235120059,0.24063131,3876.0,3875.7,1.5774439]
[1734235120219,3.09454751,3876.3,3875.8,0.23972439]
[1734235120424,0.43318287,3876.2,3875.7,1.5774439]
[1734235120637,0.43318287,3876.1,3875.7,1.5774439]
[1734235120954,0.24065715,3876.0,3875.7,1.5774439]
[1734235121110,3.09454751,3876.3,3875.7,1.5774439]
[1734235121311,0.43323397,3876.2,3875.7,1.5774439]
[1734235121634,0.43323397,3876.1,3875.8,0.23972439]
[1734235121841,0.43323397,3876.0,3875.8,0.23972439]
[1734235122014,3.09454751,3876.3,3875.8,0.23972439]
[1734235122218,0.4333005,3876.2,3875.8,0.23972439]
[1734235122512,0.4333005,3876.1,3875.8,0.23972439]
[1734235122714,0.4333005,3876.0,3875.8,0.23972439]
[1734235122931,0.51476751,3876.3,3875.9,0.18171683]
[1734235123132,0.43330464,3876.2,3875.8,0.23972439]
[1734235123318,0.43330464,3876.1,3875.8,0.23972439]
[1734235123535,0.51476751,3876.3,3875.8,0.23972439]
[1734235123739,0.43335846,3876.2,3875.8,0.23972439]
[1734235123937,0.43335846,3876.1,3875.9,0.06304005]
[1734235124124,0.2407547,3876.0,3875.9,0.06304005]
[1734235124965,0.4333859,3876.0,3875.9,0.06304005]
[1734235125122,1.2092859,3876.0,3875.9,0.06304005]
[1734235125328,1.58820649,3876.0,3875.4,1.33148067]
[1734235125528,0.4333859,3875.9,3875.5,2.23261975]
[1734235125724,0.2407547,3875.8,3875.6,0.8930479]
[1734235126040,0.7759,3876.0,3875.4,1.33148067]
[1734235126224,0.43354166,3875.9,3875.5,2.23262766]
[1734235126429,0.19270775,3875.8,3875.5,2.23262766]
[1734235126630,0.24082122,3875.9,3875.5,2.23262766]
[1734235126971,0.4335919,3875.8,3875.5,2.23262766]
[1734235127130,0.24082122,3875.9,3875.5,2.23262766]
[1734235127330,0.43355858,3875.8,3875.6,0.89322523]
[1734235127529,0.24086591,3875.7,3875.4,0.2496]
[1734235127844,0.24082122,3875.9,3875.5,2.23305226]
[1734235128040,0.43354909,3875.8,3875.6,0.8932209]
[1734235128370,0.43354909,3875.8,3875.4,0.2496]
[1734235128371,2.82087122,3875.9,3875.4,0.2496]
[1734235128533,3.0136436,3875.8,3875.4,0.2496]
[1734235128758,0.4335136,3875.7,3875.4,0.2496]
[1734235129011,0.4335136,3875.6,3875.4,0.2496]
[1734235129218,2.58013,3875.8,3875.4,0.2496]
[1734235129365,0.24079357,3875.7,3875.4,0.2496]
[1734235129565,0.7819,3875.5,3875.4,0.2496]
[1734235129797,1.02269357,3875.5,3875.4,0.2496]
[1734235130158,1.2153257,3875.5,3875.4,0.2496]
[1734235132496,1.21518254,3875.5,3875.4,0.2496]
[1734235136185,1.02269357,3875.5,3875.4,0.2496]
[1734235138097,1.4341352,3875.5,3875.4,0.2496]
[1734235138989,1.19334163,3875.5,3875.4,0.31326677]
[1734235139311,1.43379333,3875.5,3875.4,0.31326677]
[1734235142903,0.2404517,3875.5,3875.4,0.31326677]
[1734235144627,2.58027,3875.6,3875.4,0.31326677]
[1734235144787,0.24034428,3875.5,3875.4,0.31326677]
[1734235144988,1.02124428,3875.5,3875.4,0.31326677]
[1734235145326,1.02124428,3875.5,3875.4,0.2496]
[1734235146180,1.43407101,3875.5,3875.4,0.2496]
[1734235146925,2.49816546,3875.5,3875.4,0.2496]
[1734235147527,2.49811519,3875.5,3875.4,0.2496]
[1734235150432,0.7913,3875.4,3874.1,1.85908067]
[1734235150633,3.37218,3874.7,3874.2,2.23263183]
[1734235150789,3.37218,3874.7,3874.2,0.06375493]
[1734235150790,2.58094,3874.6,3874.2,0.06375493]
[1734235152438,2.58105,3874.4,3874.2,0.06375493]
[1734235152603,0.23993967,3874.3,3873.6,0.7772]
[1734235152805,2.82110967,3874.2,3873.6,0.7772]
[1734235153052,2.58117,3874.2,3873.7,0.0641079]
[1734235153557,3.37247,3874.2,3873.7,0.0641079]
[1734235154061,2.58143,3873.9,3873.7,0.0641079]
[1734235154356,0.7913,3874.0,3872.8,2.14597512]
[1734235154530,2.58162,3873.6,3872.9,0.7772]
[1734235156340,0.7913,3873.4,3872.9,0.7772]
[1734235158863,0.78819602,3873.4,3872.9,0.7772]
[1734235159375,0.78819602,3873.4,3872.6,0.7772]
[1734235160368,2.58185,3873.2,3872.6,0.7772]
[1734235162983,0.78819602,3873.4,3872.6,0.7772]
[1734235163142,3.36991602,3873.4,3872.6,0.7772]
[1734235166187,0.52388782,3872.9,3872.6,0.7772]
[1734235167961,0.7688,3873.8,3872.8,0.78]
[1734235168164,2.58135,3874.0,3873.2,0.78]
[1734235168926,2.58135,3874.0,3872.9,1.06409445]
[1734235168927,2.58165,3873.5,3873.3,0.06322933]
[1734235169279,2.58165,3873.5,3872.9,0.78]
[1734235169684,2.58165,3873.5,3873.0,0.06324412]
[1734235170086,2.58165,3873.5,3872.9,0.78]
[1734235170312,2.58165,3873.5,3873.1,0.06323919]
[1734235170513,2.58165,3873.5,3873.0,0.06324412]
[1734235170731,2.58165,3873.5,3873.2,0.06323426]
[1734235170906,2.58165,3873.5,3873.1,0.06323919]
[1734235171106,2.58165,3873.5,3872.9,0.78]
[1734235171436,2.58165,3873.5,3873.2,0.06323426]
[1734235171633,2.58172,3873.4,3872.9,0.78]
[1734235171805,3.35058,3873.3,3872.3,0.78]
[1734235172127,3.35058,3873.3,3872.4,1.12744886]
[1734235176362,0.23940882,3873.2,3872.4,1.12744886]
[1734235176664,0.23940882,3873.2,3872.4,1.61819375]
[1734235176866,0.23940882,3873.2,3872.4,4.61819375]
[1734235177723,0.7688,3872.9,3872.4,0.06335441]
[1734235177924,3.35086,3872.9,3872.4,0.06335441]
[1734235178174,0.23952289,3872.8,3872.4,0.06335441]
[1734235178327,2.82169289,3872.7,3872.4,0.06335441]
[1734235178521,0.7688,3872.6,3872.4,0.06335441]
[1734235178932,0.7688,3872.6,3872.3,0.625]
[1734235179188,0.7688,3872.6,3872.5,0.06335139]
[1734235179478,1.00846903,3872.6,3872.5,0.06335139]
[1734235179638,1.00846903,3872.6,3872.3,0.625]
[1734235179971,0.7688,3872.6,3872.4,0.06335632]
[1734235180300,0.23979639,3872.5,3872.4,0.06335632]
[1734235180473,0.42931863,3872.5,3872.4,0.06335632]
[1734235180641,0.42931863,3872.5,3872.3,0.625]
[1734235180828,2.82216639,3872.4,3872.3,0.625]
[1734235181391,0.23979639,3872.4,3872.3,0.625]
[1734235181597,0.23981294,3872.4,3872.3,0.625]
[1734235181764,3.35106,3872.6,3872.3,0.625]
[1734235181765,0.7688,3872.6,3872.3,0.68877649]
[1734235182109,0.23982685,3872.5,3872.3,0.68877649]
[1734235182401,0.23982685,3872.4,3872.3,0.68877649]
[1734235183356,0.59891454,3872.4,3872.3,0.68877649]
[1734235184680,0.35908769,3872.4,3872.3,0.68877649]
[1734235184881,0.59908252,3872.4,3872.3,0.625]
[1734235185067,0.59908252,3872.4,3872.3,0.68920326]
[1734235186356,0.23999483,3872.4,3872.3,0.68920326]
[1734235189279,1.05519483,3872.4,3872.3,0.625]
[1734235190359,1.05519483,3872.4,3872.3,0.68920326]
[1734235190693,0.23999483,3872.4,3872.3,0.68920326]
[1734235193958,2.58225,3872.6,3872.3,0.68920326]
[1734235194159,0.63241769,3872.5,3872.3,0.68920326]
[1734235194359,0.23991502,3872.4,3872.3,0.625]
[1734235194798,0.23991502,3872.4,3872.3,0.68920326]
[1734235195601,0.23990951,3872.4,3872.3,0.68920326]
[1734235198425,0.23990951,3872.4,3872.3,1.47000326]
[1734235198627,0.8152,3873.2,3872.3,1.47000326]
[1734235198628,3.39704,3873.2,3872.3,1.72341303]
[1734235198807,0.24001975,3873.1,3872.3,1.47000326]
[1734235199111,0.24001975,3873.0,3872.3,1.47000326]
[1734235199262,0.24001975,3872.9,3872.3,1.47000326]
[1734235199462,0.24001975,3872.8,3872.3,1.47000326]
[1734235199706,0.24001975,3872.7,3872.3,1.47000326]
[1734235199909,2.58184,3873.2,3872.3,1.47000326]
[1734235200185,2.921544,3873.2,3872.3,1.47000326]
[1734235200388,0.24008875,3873.1,3872.3,1.47000326]
[1734235200590,2.921544,3873.2,3872.3,1.47000326]
[1734235200786,0.24009039,3873.1,3872.3,1.47000326]
[1734235201034,0.24009039,3873.0,3872.3,1.47000326]
[1734235201193,2.921544,3873.2,3872.3,1.47000326]
[1734235201194,0.24009039,3872.9,3872.3,1.47000326]
[1734235201389,0.24009039,3872.8,3872.3,0.68920326]
[1734235201596,0.24009039,3872.7,3872.4,0.7808]
[1734235201797,0.51489002,3873.0,3872.4,0.7808]
[1734235202148,0.24012066,3872.9,3872.4,0.7808]
[1734235202308,1.87929445,3873.5,3872.4,0.7808]
[1734235202309,0.24012066,3872.8,3872.4,0.7808]
[1734235202627,0.24013701,3872.7,3872.4,0.7808]
[1734235202846,2.58182,3873.3,3872.4,0.7808]
[1734235203007,0.2401348,3873.2,3872.4,0.7808]
[1734235203343,0.2401348,3873.1,3872.4,0.7808]
[1734235203529,0.2401348,3873.0,3872.4,0.7808]
[1734235203736,0.2401348,3872.9,3872.4,0.7808]
[1734235203958,0.2401348,3872.8,3872.4,0.7808]
[1734235204091,0.2401348,3872.7,3872.4,0.7808]
[1734235204316,0.51104633,3873.2,3872.4,0.7808]
[1734235204524,0.24010013,3873.1,3872.5,1.06409445]
[1734235204717,0.24010013,3873.0,3872.5,1.06409445]
[1734235204916,0.24010013,3872.9,3872.6,0.7808]
[1734235205122,0.24010013,3872.8,3872.6,0.7808]
[1734235205341,0.51104633,3873.2,3872.6,0.7808]
[1734235205636,0.24013784,3873.1,3872.6,0.7808]
[1734235205842,0.24013784,3873.0,3872.6,0.7808]
[1734235206004,0.24013784,3872.9,3872.6,0.7808]
[1734235206202,0.24014635,3872.8,3872.6,0.7808]
[1734235206434,0.51104633,3873.2,3872.6,0.7808]
[1734235206626,0.2401004,3873.1,3872.6,0.7808]
[1734235206821,0.2401004,3873.0,3872.6,0.7808]
[1734235207128,0.2401004,3872.9,3872.6,0.7808]
[1734235207340,0.2401004,3872.8,3872.6,0.7808]
[1734235207510,0.51104633,3873.2,3872.6,0.7808]
[1734235207709,0.24013503,3873.1,3872.6,0.7808]
[1734235207913,0.24013503,3873.0,3872.6,0.7808]
[1734235208110,0.24013503,3872.9,3872.8,0.7749]
[1734235208328,0.52555618,3873.3,3872.8,1.83899445]
[1734235208629,0.24011022,3873.2,3872.8,1.83899445]
[1734235208800,0.52555618,3873.3,3872.8,1.83899445]
[1734235209141,0.24011071,3873.2,3873.0,1.83899445]
[1734235209434,0.52555618,3873.3,3873.0,1.83899445]
[1734235210439,0.52555618,3873.3,3872.7,0.7749]
[1734235210605,0.24002481,3873.2,3872.7,0.7749]
[1734235210801,0.24002481,3873.1,3872.7,0.7749]
[1734235211003,0.52555618,3873.3,3872.7,0.7749]
[1734235211206,0.24001747,3873.2,3872.7,0.7749]
[1734235211542,0.52555618,3873.3,3872.7,0.7749]
[1734235211842,0.24000523,3873.2,3872.7,0.7749]
[1734235212019,0.52555618,3873.3,3872.7,0.7749]
[1734235212338,0.24001555,3873.2,3872.7,0.7749]
[1734235212841,0.24001555,3873.2,3872.7,1.83899445]
[1734235213044,0.52555618,3873.3,3872.7,2.48357114]
[1734235213241,0.23999554,3873.2,3872.7,2.48357114]
[1734235213543,0.23997661,3873.1,3872.7,2.48357114]
[1734235213723,0.52555618,3873.3,3872.7,2.48357114]
[1734235213923,0.23997446,3873.2,3872.7,2.48357114]
[1734235214225,0.23997446,3873.1,3872.7,2.48357114]
[1734235214424,0.52555618,3873.3,3872.7,2.48357114]
[1734235214844,0.23997817,3873.2,3872.7,2.48357114]
[1734235215141,0.23997817,3873.2,3872.8,0.27623219]
[1734235215647,0.52555618,3873.3,3872.8,0.27623219]
[1734235216720,0.2399849,3873.2,3872.7,0.7749]
[1734235216928,0.2399849,3873.1,3872.7,0.7749]
[1734235217321,0.52555618,3873.3,3872.7,0.7749]
[1734235217529,0.23999259,3873.2,3872.8,0.06126754]
[1734235217712,0.23999123,3873.1,3872.8,0.06126754]
[1734235217908,0.52555618,3873.3,3872.9,1.06409445]
[1734235218154,0.23999283,3873.2,3873.0,0.06130572]
[1734235218357,0.23999283,3873.2,3872.9,1.06409445]
[1734235218523,0.23999283,3873.2,3873.1,0.06130079]
[1734235218725,0.23999283,3873.2,3872.9,1.06409445]
[1734235219186,0.23999283,3873.2,3873.0,0.06130572]
[1734235219393,0.23999283,3873.2,3872.9,1.06409445]
[1734235219554,0.23999283,3873.2,3873.1,0.06130079]
[1734235219751,0.23999283,3873.2,3872.9,1.06409445]
[1734235219960,0.52555618,3873.3,3873.1,0.06130079]
[1734235220160,0.52555618,3873.3,3872.9,1.06409445]
[1734235220161,0.24002195,3873.2,3872.9,1.06409445]
[1734235220787,0.52555618,3873.3,3873.0,0.7749]
[1734235221081,2.5816,3873.6,3873.0,0.7749]
[1734235221082,0.24003182,3873.2,3873.0,0.7749]
[1734235221284,2.5816,3873.6,3873.0,0.7749]
[1734235221494,0.24003906,3873.5,3873.0,0.7749]
[1734235221793,0.24003906,3873.4,3873.0,0.7749]
[1734235221991,0.24003906,3873.3,3873.0,0.7749]
[1734235223313,0.50935582,3873.4,3873.0,0.7749]
[1734235223500,0.24003404,3873.3,3873.0,0.7749]
[1734235223697,0.50935582,3873.4,3873.0,0.7749]
[1734235224027,0.24005193,3873.3,3873.0,0.7749]
[1734235224175,0.7829,3873.9,3873.1,1.06409445]
[1734235224379,0.24009201,3873.8,3873.1,1.06409445]
[1734235224576,0.24009201,3873.7,3873.1,1.06409445]
[1734235224816,0.75011905,3873.6,3873.1,1.06409445]
[1734235225000,0.24009201,3873.5,3873.1,1.06409445]
[1734235225322,0.24009201,3873.4,3873.1,1.06409445]
[1734235225520,0.24009201,3873.3,3873.1,1.06409445]
[1734235225726,0.51002704,3873.6,3873.1,1.06409445]
[1734235225923,0.24013473,3873.5,3873.1,1.06409445]
[1734235226122,0.24013473,3873.4,3873.1,1.06409445]
[1734235226419,0.24013473,3873.3,3873.1,1.06409445]
[1734235226623,0.51002704,3873.6,3873.1,1.06409445]
[1734235226825,0.24020168,3873.5,3873.1,1.06409445]
[1734235226991,0.24020168,3873.4,3873.1,1.06409445]
[1734235227191,0.51002704,3873.6,3873.1,1.06409445]
[1734235227392,0.24020291,3873.5,3873.1,1.06409445]
[1734235227592,0.24020291,3873.4,3873.1,1.06409445]
[1734235227795,0.24020291,3873.3,3873.1,1.06409445]
[1734235227994,0.51002704,3873.6,3873.1,1.06409445]
[1734235228230,0.24028812,3873.5,3873.1,1.06409445]
[1734235228431,0.24028812,3873.4,3873.1,1.06409445]
[1734235228592,0.24028812,3873.3,3873.1,1.06409445]
[1734235228792,0.24028812,3873.2,3873.1,1.06409445]
[1734235230120,0.51002704,3873.6,3873.1,1.06409445]
[1734235230439,0.2403665,3873.5,3873.1,1.06409445]
[1734235230613,0.2403665,3873.4,3873.1,1.06409445]
[1734235230814,0.2403665,3873.3,3873.1,1.06409445]
[1734235231001,0.2403665,3873.2,3873.1,1.06409445]
[1734235231429,0.2403665,3873.2,3873.1,1.12537795]
[1734235231831,0.2403665,3873.2,3873.1,1.91747795]
[1734235236737,0.24049934,3873.2,3873.1,1.91747795]
[1734235237643,4.60374887,3874.4,3873.1,1.91747795]
[1734235237644,0.8114,3874.7,3873.6,2.58157]
[1734235237861,3.64992591,3874.9,3874.2,1.06409445]
[1734235237862,0.24056435,3874.6,3874.2,1.06409445]
[1734235238064,0.24056435,3874.5,3874.3,0.7921]
[1734235238239,0.24056435,3874.4,3874.3,0.85306487]
[1734235239229,3.09095301,3874.9,3874.3,0.85306487]
[1734235239440,3.5881049,3874.9,3874.3,0.85306487]
[1734235242476,2.58079,3874.8,3874.3,0.85306487]
[1734235242825,2.58079,3874.8,3874.3,0.7921]
[1734235245531,0.8114,3874.6,3873.5,0.7921]
[1734235245737,3.39267,3874.1,3873.5,0.7921]
[1734235246032,0.8114,3874.1,3873.6,0.05620357]
[1734235246366,2.58148,3873.8,3873.7,0.05239574]
[1734235246559,2.920768,3873.8,3873.2,0.7921]
[1734235246758,2.58148,3873.8,3873.2,0.7921]
[1734235246954,0.8114,3874.1,3873.3,0.05242107]
[1734235246955,2.58154,3873.7,3873.3,0.05242107]
[1734235247154,0.7684,3873.6,3872.9,1.06409445]
[1734235247541,0.7684,3873.6,3873.0,0.05243586]
[1734235249166,0.76749667,3873.6,3873.0,0.05243586]
[1734235249366,3.34395478,3873.6,3873.0,0.05243586]
[1734235249568,2.58166,3873.5,3872.9,1.06409445]
[1734235249768,2.58172,3873.4,3872.9,1.06409445]
[1734235250072,2.58172,3873.4,3873.0,0.05243586]
[1734235250271,2.58172,3873.4,3872.9,1.06409445]
[1734235250572,2.58172,3873.4,3873.0,0.05243586]
[1734235250935,2.58172,3873.4,3872.8,0.7606]
[1734235251136,2.58172,3873.4,3873.1,0.05243093]
[1734235251366,0.41899765,3873.4,3872.5,2.14456437]
[1734235251554,1.27386101,3873.6,3873.2,0.052426]
[1734235251555,2.58178,3873.3,3873.2,0.052426]
[1734235252075,2.58178,3873.3,3872.5,1.82469445]
[1734235252279,2.58178,3873.3,3873.2,0.052426]
[1734235252577,2.58178,3873.3,3872.5,1.82469445]
[1734235252875,2.58178,3873.3,3873.2,0.052426]
[1734235254149,2.58178,3873.3,3872.5,2.41521089]
[1734235254474,2.58178,3873.3,3873.2,0.052426]
[1734235255139,2.58178,3873.3,3872.5,1.82469445]
[1734235255575,2.58178,3873.3,3872.6,0.05078892]
[1734235257378,2.58178,3873.3,3872.6,0.23833726]
[1734235261073,1.27386101,3873.6,3872.6,0.05078892]
[1734235261074,2.58194,3873.1,3872.6,0.05078892]
[1734235261251,0.7684,3873.0,3872.6,0.05078892]
[1734235261453,3.35038,3873.0,3872.6,0.05078892]
[1734235263073,2.58207,3872.9,3872.6,0.05078892]
[1734235263249,0.7684,3873.0,3872.6,0.05078892]
[1734235263250,2.58212,3872.8,3872.6,0.05078892]
[1734235263455,2.58212,3872.8,3872.2,0.7606]
[1734235263778,0.7684,3873.0,3872.2,0.7606]
[1734235264121,2.58218,3872.7,3872.3,0.04988677]
[1734235264742,3.08697782,3872.7,3872.3,0.04988677]
[1734235266145,2.58218,3872.7,3872.3,0.04988677]
[1734235266878,2.58234,3872.5,3872.3,0.04988677]
[1734235267281,2.58234,3872.5,3871.6,4.08046992]
[1734235267590,2.58234,3872.5,3871.7,2.23246492]
[1734235267892,0.7684,3872.6,3871.8,0.89298597]
[1734235268091,0.7684,3872.6,3871.9,0.7978]
[1734235268267,0.7684,3872.6,3872.0,0.17406974]
[1734235268456,0.7684,3872.6,3871.9,0.8477065]
[1734235268659,0.7684,3872.6,3872.1,0.04989663]
[1734235268977,0.7684,3872.6,3872.0,0.04990156]
[1734235269173,0.7684,3872.6,3872.2,0.0498917]
[1734235269378,0.7684,3872.6,3872.1,0.04989663]
[1734235269576,0.7684,3872.6,3872.3,0.04988677]
[1734235269780,0.7684,3872.6,3872.2,0.0498917]
[1734235270097,0.7684,3872.6,3871.9,0.7978]
[1734235270259,0.7684,3872.6,3872.3,0.04988677]
[1734235270463,0.7684,3872.6,3871.9,0.7978]
[1734235270661,0.7684,3872.6,3872.4,0.04988183]
[1734235270877,0.7684,3872.6,3871.9,0.7978]
[1734235271389,0.7684,3872.6,3872.0,0.04990156]
[1734235272258,2.58219,3872.7,3872.0,0.04990156]
[1734235274679,1.30573284,3872.8,3872.1,0.7978]
[1734235274680,0.52173284,3872.8,3872.1,0.7978]
[1734235274884,0.52173284,3872.8,3872.1,0.84784083]
[1734235282288,3.10385284,3872.8,3872.1,0.84784083]
[1734235286309,2.58219,3872.7,3872.1,0.84784083]
[1734235287029,0.52173284,3872.8,3872.1,0.84784083]
[1734235292448,0.52173284,3872.8,3872.2,0.89476498]
[1734235292812,0.52173284,3872.8,3872.3,0.0489229]
[1734235293197,0.52173284,3872.8,3872.1,0.7978]
[1734235293394,0.52173284,3872.8,3872.2,0.94370531]
[1734235293601,0.52173284,3872.8,3872.2,0.04892784]
[1734235294468,0.52173284,3872.8,3872.3,0.89498772]
[1734235294923,0.52173284,3872.8,3872.4,0.04891797]
[1734235295646,0.52173284,3872.8,3872.5,0.04891304]
[1734235296130,0.52173284,3872.8,3872.1,0.7978]
[1734235296340,0.52173284,3872.8,3872.6,0.04890811]
[1734235296472,0.52173284,3872.8,3872.1,0.7978]
[1734235296672,0.52173284,3872.8,3872.7,0.04890318]
[1734235296924,0.52173284,3872.8,3872.1,0.7978]
[1734235297121,0.52173284,3872.8,3872.2,0.89531928]
[1734235297272,0.52173284,3872.8,3872.2,0.0490086]
[1734235297474,2.58227,3872.6,3872.2,0.0490086]
[1734235298088,2.58232,3872.5,3871.9,1.08046992]
[1734235298289,2.58232,3872.5,3872.3,0.04690034]
[1734235298625,2.58232,3872.5,3871.9,1.08046992]
[1734235298626,2.58232,3872.5,3872.4,0.04689541]
[1734235298794,2.58232,3872.5,3871.9,1.08046992]
[1734235298989,2.58232,3872.5,3872.0,2.28576844]
[1734235299251,2.58232,3872.5,3872.1,0.89554132]
[1734235299411,2.58232,3872.5,3872.0,0.04691513]
[1734235299612,2.58232,3872.5,3872.1,0.89556427]
[1734235299822,2.58232,3872.5,3872.2,0.04690527]
[1734235300132,2.58232,3872.5,3871.9,1.08046992]
[1734235300330,2.57921282,3872.5,3872.3,0.04690034]
[1734235300556,2.57921282,3872.5,3871.9,1.08046992]
[1734235300677,2.57921282,3872.5,3872.4,0.04689541]
[1734235300871,2.57921282,3872.5,3871.9,1.08046992]
[1734235301124,2.57921282,3872.5,3872.4,0.04689541]
[1734235301276,2.57921282,3872.5,3871.9,1.08046992]
[1734235301478,2.57921282,3872.5,3872.4,0.04689541]
[1734235301732,2.57921282,3872.5,3871.9,1.08046992]
[1734235301936,2.57921282,3872.5,3872.4,0.04689541]
[1734235302074,3.15481757,3872.5,3871.9,1.08046992]
[1734235302435,2.57921282,3872.5,3872.0,2.23898048]
[1734235302581,2.57921282,3872.5,3872.1,0.94250239]
[1734235302774,2.57921282,3872.5,3872.1,0.0469102]
[1734235302974,2.57921282,3872.5,3871.9,1.08046992]
[1734235303170,2.57921282,3872.5,3872.0,2.28595049]
[1734235303423,2.57921282,3872.5,3872.1,0.89561414]
[1734235303634,2.57921282,3872.5,3872.2,0.04690527]
[1734235303927,2.57921282,3872.5,3871.9,1.08046992]
[1734235304130,2.57921282,3872.5,3872.3,0.04690034]
[1734235304277,2.57921282,3872.5,3871.9,1.08046992]
[1734235304472,2.57921282,3872.5,3872.4,0.04689541]
[1734235304678,3.2506004,3872.5,3871.9,1.08046992]
[1734235304875,2.57921282,3872.5,3872.4,0.04689541]
[1734235305098,2.57921282,3872.5,3871.9,1.08046992]
[1734235305295,2.57921282,3872.5,3872.4,0.04689541]
[1734235305637,2.58238,3872.4,3871.9,1.08046992]
[1734235305848,2.58247,3872.3,3872.0,0.8957319]
[1734235306061,2.58252,3872.2,3871.7,1.08046992]
[1734235306188,2.58252,3872.2,3871.8,2.23942916]
[1734235306389,2.58252,3872.2,3871.9,0.0471681]
[1734235306645,0.8236,3872.3,3871.6,1.08046992]
[1734235306944,2.5826,3872.1,3871.7,2.2391345]
[1734235307231,2.5826,3872.1,3871.8,2.2391345]
[1734235307437,2.5826,3872.1,3871.9,0.0471681]
[1734235307643,2.5826,3872.1,3871.6,1.08046992]
[1734235307937,2.5826,3872.1,3871.7,2.2389643]
[1734235308094,2.5826,3872.1,3871.8,0.89558572]
[1734235308300,2.5826,3872.1,3871.7,0.04717797]
[1734235308504,2.5826,3872.1,3871.9,0.0471681]
[1734235308685,2.5826,3872.1,3871.8,0.04717304]
[1734235308996,2.5826,3872.1,3871.9,0.0471681]
[1734235309194,0.51919079,3872.0,3871.5,1.89356992]
[1734235309404,0.51919079,3872.0,3871.6,2.28598882]
[1734235309603,0.51919079,3872.0,3871.7,0.89552237]
[1734235309806,0.51919079,3872.0,3871.8,0.04717304]
[1734235309983,0.51919079,3872.0,3871.5,1.89356992]
[1734235310180,0.51919079,3872.0,3871.6,2.28592767]
[1734235310509,0.51919079,3872.0,3871.7,0.89539868]
[1734235310821,0.51919079,3872.0,3871.8,0.04749996]
[1734235310991,0.51919079,3872.0,3871.5,0.8131]
[1734235311193,0.51919079,3872.0,3871.6,2.28579668]
[1734235311410,0.51919079,3872.0,3871.7,0.89531474]
[1734235311611,0.51919079,3872.0,3871.8,0.04750187]
[1734235311818,0.51919079,3872.0,3871.5,0.8131]
[1734235311991,0.51919079,3872.0,3871.6,2.28558939]
[1734235312193,0.51919079,3872.0,3871.6,0.04751174]
[1734235312727,0.51919079,3872.0,3871.7,0.8951504]
[1734235312893,0.51919079,3872.0,3871.6,0.04751174]
[1734235313101,0.51919079,3872.0,3871.8,0.04750187]
[1734235313301,0.51919079,3872.0,3871.7,0.0475068]
[1734235313503,0.51919079,3872.0,3871.9,0.04749694]
[1734235313702,0.51919079,3872.0,3871.8,0.04750187]
[1734235313902,0.51919079,3872.0,3871.9,0.04749694]
[1734235314350,0.51919079,3872.0,3871.5,0.8131]
[1734235314839,0.51919079,3872.0,3871.6,0.04751174]
[1734235315410,3.10184079,3872.0,3871.6,0.04751174]
[1734235318427,0.19234624,3871.9,3871.6,0.04751174]
[1734235318631,0.19234624,3871.8,3871.4,0.625]
[1734235318822,3.10184079,3872.0,3871.5,0.0475859]
[1734235318823,0.19234624,3871.7,3871.5,0.0475859]
[1734235319022,3.10184079,3872.0,3871.4,0.625]
[1734235319231,0.19235691,3871.9,3871.5,0.0475859]
[1734235319413,0.19235691,3871.8,3871.4,0.625]
[1734235319612,0.19235691,3871.7,3871.5,0.04761475]
[1734235319811,3.10184079,3872.0,3871.4,0.625]